bitfinex/quotes_SOLUSD_20250819
["timestamp","ask_amount","ask_price","bid_price","bid_amount"]
[1755621366201,14.15713938,178.5,178.47,0.06]
[1755621366410,53.89559401,178.49,178.47,0.06]
[1755621366583,17.924041,178.48,178.47,0.06]
[1755621366901,13.59559401,178.47,178.45,0.06]
[1755621367202,23.68567823,178.47,178.45,0.06]
[1755621367778,26.0,178.43,178.4,0.06]
[1755621367976,66.32,178.43,178.4,0.06]
[1755621368203,67.04,178.43,178.4,0.06]
[1755621368987,67.60154537,178.43,178.4,0.06]
[1755621369205,73.20598408,178.43,178.4,0.06]
[1755621369699,40.88154537,178.43,178.4,0.06]
[1755621370185,0.56154537,178.45,178.4,0.77]
[1755621370507,40.3,178.44,178.42,0.77]
[1755621370680,1.28154537,178.43,178.42,0.06]
[1755621373597,20.48157809,178.43,178.42,0.06]
[1755621373894,13.59559401,178.42,178.4,0.06]
[1755621374105,40.90154537,178.41,178.4,0.06]
[1755621374579,41.62154537,178.41,178.4,0.06]
[1755621374984,55.21713938,178.41,178.4,0.06]
[1755621375186,13.59559401,178.4,178.38,0.06]
[1755621375414,54.49713938,178.39,178.38,0.06]
[1755621375809,55.21713938,178.39,178.38,0.06]
[1755621377210,0.56154537,178.39,178.38,0.06]
[1755621377420,40.34,178.39,178.38,0.06]
[1755621377619,41.62154537,178.39,178.38,0.06]
[1755621378008,40.90154537,178.39,178.38,0.06]
[1755621378949,55.21713938,178.39,178.38,0.06]
[1755621379540,13.59559401,178.38,178.36,0.06]
[1755621379838,40.92154537,178.37,178.36,0.06]
[1755621380627,0.56154537,178.37,178.36,0.77]
[1755621380824,40.34,178.37,178.36,0.77]
[1755621381213,0.56154537,178.4,178.36,0.77]
[1755621381413,40.36,178.39,178.37,0.71]
[1755621381616,40.36,178.39,178.38,0.71]
[1755621381905,40.36,178.39,178.36,0.06]
[1755621382110,40.36,178.39,178.36,0.77]
[1755621382532,40.36,178.39,178.36,0.06]
[1755621382735,40.36,178.39,178.37,0.71]
[1755621382916,40.36,178.39,178.38,0.71]
[1755621383234,0.03,178.44,178.39,0.14216157]
[1755621383452,40.34,178.43,178.4,0.71]
[1755621383736,40.34,178.43,178.38,0.71]
[1755621384037,41.06,178.43,178.38,0.71]
[1755621384213,0.03,178.44,178.39,0.71]
[1755621384413,0.03,178.44,178.4,0.14216157]
[1755621384626,40.38,178.43,178.41,0.71]
[1755621385236,0.72,178.42,178.37,0.14216157]
[1755621385444,41.66154537,178.43,178.37,0.14216157]
[1755621385628,40.38,178.43,178.39,0.14216157]
[1755621385943,40.38,178.43,178.4,0.71]
[1755621386120,40.38,178.43,178.39,0.14216157]
[1755621386316,40.38,178.43,178.39,0.85216157]
[1755621386644,41.66154537,178.43,178.38,0.14216157]
[1755621387009,41.66154537,178.43,178.38,0.71]
[1755621387209,40.94154537,178.43,178.39,0.71]
[1755621387428,40.38,178.43,178.4,0.71]
[1755621387644,40.38,178.43,178.41,0.71]
[1755621387843,40.38,178.43,178.42,0.71]
[1755621388215,40.38,178.43,178.42,0.85216157]
[1755621388948,40.38,178.43,178.41,0.14216157]
[1755621389236,40.38,178.43,178.41,0.85216157]
[1755621389423,40.38,178.43,178.41,0.14216157]
[1755621389628,40.38,178.43,178.41,0.85216157]
[1755621390233,40.38,178.43,178.42,0.71]
[1755621390838,40.38,178.43,178.41,0.14216157]
[1755621391048,40.38,178.43,178.41,0.71]
[1755621391345,40.38,178.43,178.37,31.60628776]
[1755621391346,40.38,178.43,178.37,31.60624789]
[1755621391545,40.38,178.43,178.4,0.14216157]
[1755621391929,40.38,178.43,178.38,26.71]
[1755621392114,40.38,178.43,178.39,26.85216157]
[1755621392316,40.38,178.43,178.4,0.71]
[1755621392538,0.72,178.42,178.37,26.0]
[1755621392757,40.38,178.43,178.38,0.71]
[1755621393125,40.38,178.43,178.39,0.81216157]
[1755621393324,40.38,178.43,178.41,0.14216157]
[1755621394437,40.38,178.43,178.42,26.81216157]
[1755621394631,40.38,178.43,178.42,0.81216157]
[1755621395521,40.38,178.43,178.39,0.67]
[1755621395522,40.41,178.43,178.39,0.67]
[1755621395717,41.09,178.43,178.38,26.06]
[1755621395914,40.41,178.43,178.39,0.67]
[1755621396555,40.41,178.43,178.4,0.14216157]
[1755621396764,0.68,178.42,178.38,0.06]
[1755621397043,0.68,178.41,178.38,0.06]
[1755621397424,0.68,178.4,178.38,0.06]
[1755621397618,40.5,178.39,178.38,0.06]
[1755621398520,41.18,178.39,178.38,0.06]
[1755621398720,40.5,178.39,178.38,0.87216157]
[1755621398948,0.59154537,178.43,178.39,0.14216157]
[1755621398949,0.03,178.43,178.39,0.14216157]
[1755621399147,40.48,178.4,178.39,0.14216157]
[1755621399648,40.48,178.4,178.38,0.06]
[1755621399968,40.48,178.4,178.38,0.20216157]
[1755621401058,40.48,178.4,178.38,0.06]
[1755621401059,0.68,178.39,178.38,0.06]
[1755621401357,14.83713938,178.39,178.38,0.06]
[1755621401561,1.24154537,178.39,178.36,0.06]
[1755621401873,0.68,178.38,178.36,0.06]
[1755621402363,0.68,178.37,178.36,0.06]
[1755621404645,45.41104563,178.37,178.36,0.06]
[1755621404850,49.16733126,178.37,178.36,0.06]
[1755621405231,50.19974894,178.37,178.36,0.06]
[1755621405439,40.83713938,178.37,178.36,0.06]
[1755621405639,46.44346331,178.37,178.36,0.06]
[1755621406120,50.1984629,178.37,178.36,0.06]
[1755621406673,13.59559401,178.36,178.34,0.2]
[1755621406998,40.15713938,178.35,178.34,0.2]
[1755621407286,81.41713938,178.35,178.34,0.2]
[1755621408091,90.78151737,178.35,178.34,0.2]
[1755621408654,64.78151737,178.35,178.34,0.2]
[1755621409287,64.92367894,178.35,178.34,0.2]
[1755621410188,13.73775558,178.34,178.33,0.2]
[1755621410395,18.17518095,178.34,178.33,0.2]
[1755621410570,18.03301938,178.34,178.33,0.2]
[1755621411997,23.64028639,178.34,178.33,0.2]
[1755621412686,33.78244796,178.34,178.32,0.2]
[1755621412885,49.73775558,178.31,178.28,0.2]
[1755621413190,23.73775558,178.29,178.28,0.2]
[1755621413359,18.05672632,178.29,178.28,0.2]
[1755621413561,40.15713938,178.29,178.28,0.2]
[1755621413779,65.56208012,178.29,178.28,0.2]
[1755621413983,75.56208012,178.29,178.28,0.2]
[1755621414801,65.70424169,178.29,178.28,0.2]
[1755621414980,80.40069245,178.29,178.28,0.2]
[1755621415307,23.73775558,178.28,178.27,0.06]
[1755621415482,28.16950111,178.28,178.27,0.06]
[1755621415681,26.0,178.2,178.16,0.2]
[1755621415882,26.0,178.17,178.16,0.2]
[1755621416079,67.64,178.17,178.16,0.2]
[1755621416279,81.91559401,178.17,178.16,0.2]
[1755621417802,81.23559401,178.17,178.16,0.2]
[1755621418409,67.64,178.17,178.16,0.2]
[1755621418775,90.44619189,178.17,178.16,0.2]
[1755621419684,87.52821117,178.17,178.16,0.2]
[1755621420087,90.44635801,178.17,178.16,0.2]
[1755621420290,91.00790338,178.17,178.16,0.2]
[1755621420487,91.15006495,178.17,178.16,0.2]
[1755621420789,13.59559401,178.12,178.03,0.67]
[1755621421093,42.42154537,178.11,178.03,0.67]
[1755621421416,40.27559401,178.1,178.03,0.67]
[1755621421719,26.0,178.01,177.93,0.67]
[1755621421885,42.44154537,178.0,177.87,5.62205172]
[1755621422077,42.44154537,178.0,177.86,16.893319]
[1755621422078,42.44154537,178.0,177.89,0.67]
[1755621422406,42.06,177.99,177.89,0.67]
[1755621422987,0.56154537,177.98,177.89,0.67]
[1755621423201,42.16,177.97,177.89,0.67]
[1755621423406,0.56154537,177.96,177.89,0.67]
[1755621423582,42.18,177.95,177.89,0.67]
[1755621423788,42.18,177.95,177.83,16.895222]
[1755621423789,1.22154537,177.94,177.86,0.67]
[1755621423986,0.56154537,177.94,177.86,0.67]
[1755621424580,6.18144925,177.94,177.86,0.67]
[1755621424890,0.66,177.93,177.85,0.67]
[1755621425087,0.56154537,177.92,177.87,0.67]
[1755621425302,42.42,177.91,177.87,0.67]
[1755621425636,42.44,177.9,177.88,0.67]
[1755621425937,42.44,177.89,177.88,0.67]
[1755621426225,42.44,177.89,177.83,0.81216157]
[1755621426516,0.56154537,177.88,177.81,4.35292445]
[1755621426718,0.56154537,177.88,177.83,0.67]
[1755621426922,42.46,177.87,177.81,3.68292445]
[1755621427081,0.56154537,177.93,177.84,26.67]
[1755621427414,42.5,177.92,177.86,0.14216157]
[1755621427618,42.6,177.92,177.88,0.14216157]
[1755621427916,1.22154537,177.91,177.84,0.67]
[1755621428118,13.59559401,177.9,177.81,4.41292445]
[1755621428282,0.56154537,177.89,177.83,0.06]
[1755621428487,0.56154537,177.89,177.84,0.67]
[1755621428687,42.64,177.88,177.84,0.67]
[1755621428900,42.64,177.88,177.85,0.14216157]
[1755621429100,42.64,177.88,177.86,0.67]
[1755621429299,42.64,177.88,177.83,0.06]
[1755621429300,0.56154537,177.87,177.83,0.06]
[1755621429512,0.56154537,177.87,177.81,3.74292445]
[1755621429513,13.59559401,177.84,177.81,3.74292445]
[1755621429688,26.0,177.85,177.74,16.904742]
[1755621429689,26.0,177.78,177.74,16.904742]
[1755621429885,56.85713938,177.77,177.65,0.67]
[1755621430112,57.42713938,177.77,177.63,0.56]
[1755621430318,57.42713938,177.77,177.76,196.6754216]
[1755621430615,57.42713938,177.77,177.76,67.66790532]
[1755621431098,71.86961162,177.77,177.76,66.43442417]
[1755621431300,72.01177319,177.77,177.76,1e-08]
[1755621431608,72.01177319,177.77,177.63,0.56]
[1755621431609,26.0,177.64,177.63,0.56]
[1755621431786,13.59559401,177.66,177.63,1.23]
[1755621431986,0.56154537,177.65,177.63,0.56]
[1755621432192,43.1,177.64,177.63,0.56]
[1755621432417,14.15713938,177.72,177.63,0.56]
[1755621432585,14.15713938,177.72,177.63,1.23]
[1755621432586,43.22,177.71,177.63,1.23]
[1755621432786,0.56154537,177.7,177.64,0.67]
[1755621432982,13.59559401,177.73,177.66,26.0]
[1755621433298,43.84154537,177.72,177.67,0.77]
[1755621433484,43.28,177.72,177.68,0.67]
[1755621433684,43.28,177.72,177.69,0.67]
[1755621433907,43.28,177.72,177.67,0.1]
[1755621434095,43.28,177.72,177.67,0.77]
[1755621434290,26.0,177.69,177.67,0.1]
[1755621434528,44.00154537,177.68,177.67,0.1]
[1755621434698,57.59713938,177.68,177.67,0.1]
[1755621435038,0.56154537,177.72,177.67,0.77]
[1755621435207,0.56154537,177.78,177.68,0.14216157]
[1755621435409,43.5,177.77,177.7,0.14216157]
[1755621435608,43.5,177.77,177.71,0.67]
[1755621436207,43.5,177.77,177.72,0.14216157]
[1755621436426,2.255745,177.83,177.74,0.14216157]
[1755621436651,0.56154537,177.85,177.78,0.14216157]
[1755621436873,43.62,177.85,177.8,0.14216157]
[1755621437149,0.56154537,177.92,177.82,26.14216157]
[1755621437150,2.255745,177.9,177.82,26.14216157]
[1755621437364,43.72,177.89,177.84,0.14216157]
[1755621437513,0.56154537,177.94,177.87,0.14216157]
[1755621437839,19.84611419,177.97,177.91,26.0]
[1755621438009,2.93803719,177.97,177.92,0.67]
[1755621438205,2.93803719,177.97,177.93,0.14216157]
[1755621438532,2.93803719,177.97,177.94,0.67]
[1755621438845,2.93803719,177.97,177.95,0.14216157]
[1755621439041,1.17623279,177.98,177.97,0.14216157]
[1755621439223,0.45623279,177.98,177.97,0.81216157]
[1755621439421,0.56154537,178.1,177.97,26.81216157]
[1755621439623,43.78,178.1,178.02,0.14216157]
[1755621439821,1.04154537,178.11,178.04,0.14216157]
[1755621440021,1.22154537,178.14,178.06,26.0]
[1755621440240,43.74,178.17,178.07,26.20216157]
[1755621440820,43.74,178.17,178.08,0.06]
[1755621441035,0.03,178.2,178.09,0.14216157]
[1755621441220,0.03,178.2,178.12,26.0]
[1755621441426,0.03,178.2,178.17,0.14216157]
[1755621441824,0.03,178.2,178.17,26.0]
[1755621442045,0.03,178.2,178.18,0.20216157]
[1755621442249,0.03,178.22,178.19,0.03]
[1755621442454,5.857547,178.36,178.22,0.14216157]
[1755621442455,43.78,178.33,178.22,0.14216157]
[1755621442619,0.2,178.34,178.22,0.14216157]
[1755621442821,0.2,178.34,178.22,13.73775558]
[1755621443150,0.2,178.34,178.25,0.14216157]
[1755621443529,0.2,178.34,178.28,0.14216157]
[1755621443733,0.2,178.34,178.33,16.7176918]
[1755621443943,0.2,178.34,178.33,16.57553023]
[1755621444145,0.2,178.34,178.28,0.14216157]
[1755621444452,0.2,178.34,178.24,16.57553023]
[1755621444453,13.59559401,178.33,178.25,0.14216157]
[1755621444645,0.2,178.34,178.32,16.57553023]
[1755621444842,0.2,178.34,178.33,16.7176918]
[1755621445048,0.03,178.37,178.34,0.14216157]
[1755621445237,0.03,178.37,178.36,16.7176918]
[1755621445440,0.03,178.41,178.37,0.14216157]
[1755621445633,0.03,178.41,178.39,0.14216157]
[1755621445845,0.03,178.44,178.41,0.14216157]
[1755621446161,0.03,178.44,178.43,0.14216157]
[1755621446454,0.03,178.45,178.43,16.7176918]
[1755621446755,0.03,178.46,178.45,0.14216157]
[1755621446952,0.03,178.46,178.45,16.7176918]
[1755621447252,0.03,178.46,178.43,26.0]
[1755621447253,0.03,178.47,178.46,0.14216157]
[1755621447444,0.03,178.47,178.4,5.60523736]
[1755621447445,0.03,178.47,178.42,0.14216157]
[1755621447753,0.03,178.47,178.46,16.7176918]
[1755621448121,0.03,178.49,178.41,26.0]
[1755621448443,0.03,178.49,178.48,16.57553023]
[1755621448755,0.03,178.55,178.49,0.14216157]
[1755621449052,0.03,178.55,178.54,16.57553023]
[1755621449223,0.03,178.55,178.49,26.14216157]
[1755621449425,0.03,178.55,178.49,0.14216157]
[1755621449735,13.59559401,178.53,178.45,26.14216157]
[1755621449933,0.03,178.55,178.52,16.57553023]
[1755621450252,13.62559401,178.55,178.46,0.14216157]
[1755621450446,13.59559401,178.53,178.5,16.57553023]
[1755621450643,13.59559401,178.51,178.41,5.4779138]
[1755621450824,14.25559401,178.51,178.49,16.57553023]
[1755621451024,13.59559401,178.49,178.36,57.975594]
[1755621451239,13.59559401,178.47,178.39,26.0]
[1755621451634,13.59559401,178.47,178.46,16.57553023]
[1755621452132,14.15713938,178.52,178.46,16.57553023]
[1755621452329,0.69,178.55,178.51,16.57553023]
[1755621452533,0.69,178.55,178.46,26.0]
[1755621452534,0.03,178.55,178.54,16.57553023]
[1755621452758,0.03,178.55,178.54,16.7176918]
[1755621453139,0.03,178.57,178.56,33.29322203]
[1755621453332,0.03,178.61,178.6,0.14216157]
[1755621453530,0.03,178.62,178.6,16.7176918]
[1755621453857,0.03,178.62,178.61,16.7176918]
[1755621454668,0.03,178.63,178.62,0.14216157]
[1755621454826,0.03,178.63,178.62,16.7176918]
[1755621455337,0.03,178.63,178.59,26.0]
[1755621455532,0.03,178.63,178.62,16.57553023]
[1755621456065,17.1370756,178.72,178.62,16.57553023]
[1755621456066,0.68,178.72,178.62,16.7176918]
[1755621456268,0.68,178.72,178.6,6.15875962]
[1755621456269,0.68,178.69,178.63,0.14216157]
[1755621456432,13.59559401,178.68,178.64,16.57553023]
[1755621456637,13.59559401,178.64,178.61,26.0]
[1755621456852,13.59559401,178.64,178.63,16.57553023]
[1755621457130,0.68,178.64,178.51,10.0]
[1755621457350,0.68,178.64,178.59,16.57553023]
[1755621457574,14.27559401,178.63,178.61,16.57553023]
[1755621457723,13.59559401,178.61,178.47,10.0]
[1755621457925,13.59559401,178.59,178.44,10.0]
[1755621458274,13.59559401,178.57,178.56,16.57553023]
[1755621458428,42.57553023,178.62,178.56,16.57553023]
[1755621458429,13.59559401,178.61,178.56,33.15106046]
[1755621458757,13.59559401,178.61,178.54,26.0]
[1755621458967,13.59559401,178.59,178.52,0.14216157]
[1755621459133,0.68,178.64,178.52,26.14216157]
[1755621459338,13.59559401,178.63,178.54,0.14216157]
[1755621459665,0.03,178.69,178.66,0.14216157]
[1755621460163,0.03,178.69,178.68,16.57553023]
[1755621460463,0.03,178.69,178.68,16.7176918]
[1755621460648,0.68,178.78,178.74,16.57553023]
[1755621460961,0.68,178.78,178.69,26.0]
[1755621461133,14.27559401,178.78,178.77,16.57553023]
[1755621461333,0.68,178.78,178.77,16.57553023]
[1755621461843,0.2,178.81,178.77,16.57553023]
[1755621462040,0.68,178.8,178.72,16.57553023]
[1755621462245,14.27559401,178.8,178.79,16.57553023]
[1755621462608,13.59559401,178.79,178.78,22.61678349]
[1755621462767,14.27559401,178.79,178.67,26.0]
[1755621462937,13.59559401,178.77,178.72,22.61678349]
[1755621463138,13.59559401,178.75,178.71,22.61678349]
[1755621463366,13.59559401,178.75,178.74,22.61678349]
[1755621463539,13.59559401,178.77,178.74,22.61678349]
[1755621463861,13.59559401,178.77,178.76,22.61678349]
[1755621464072,0.2,178.81,178.76,22.61678349]
[1755621464242,14.47559401,178.81,178.71,0.14216157]
[1755621464444,14.47559401,178.81,178.73,0.14216157]
[1755621464646,13.59559401,178.8,178.78,22.61678349]
[1755621464851,14.27559401,178.8,178.78,22.61678349]
[1755621465042,13.59559401,178.78,178.76,22.61678349]
[1755621465242,13.59559401,178.78,178.71,26.0]
[1755621465476,13.59559401,178.78,178.62,37.17220404]
[1755621465477,13.59559401,178.76,178.68,0.14216157]
[1755621465771,13.59559401,178.76,178.66,22.61678349]
[1755621465772,13.59559401,178.71,178.66,22.61678349]
[1755621465948,13.59559401,178.71,178.59,5.59941766]
[1755621465949,13.59559401,178.71,178.69,22.61678349]
[1755621466272,0.68,178.71,178.68,22.61678349]
[1755621466451,13.59559401,178.73,178.62,26.0]
[1755621466773,13.59559401,178.73,178.71,22.61678349]
[1755621466974,13.59559401,178.74,178.7,22.61678349]
[1755621467188,13.59559401,178.71,178.58,5.59969905]
[1755621467477,36.2123775,178.69,178.63,22.61678349]
[1755621467642,36.2123775,178.69,178.51,0.21324235]
[1755621467643,36.2123775,178.67,178.61,22.61678349]
[1755621467846,13.59559401,178.65,178.62,22.61678349]
[1755621468245,0.68,178.64,178.62,22.61678349]
[1755621468447,0.68,178.64,178.58,26.0]
[1755621468448,13.59559401,178.63,178.58,26.0]
[1755621468665,13.59559401,178.65,178.53,5.60113516]
[1755621468879,13.59559401,178.65,178.54,16.827934]
[1755621469179,13.59559401,178.63,178.61,22.61678349]
[1755621469356,14.27559401,178.63,178.6,22.61678349]
[1755621469665,13.59559401,178.61,178.54,16.827934]
[1755621469869,13.59559401,178.59,178.54,16.827934]
[1755621470092,0.68,178.58,178.55,22.61678349]
[1755621470244,14.15713938,178.62,178.49,44.26]
[1755621470443,26.0,178.63,178.55,22.61678349]
[1755621470444,13.59559401,178.56,178.55,22.61678349]
[1755621470761,0.68,178.56,178.52,22.61678349]
[1755621470959,0.68,178.56,178.54,22.61678349]
[1755621471171,0.68,178.56,178.42,40.42]
[1755621471172,13.59559401,178.54,178.52,22.61678349]
[1755621471359,13.59559401,178.54,178.42,50.42]
[1755621471360,13.59559401,178.54,178.46,16.836434]
[1755621471560,13.59559401,178.52,178.5,22.61678349]
[1755621471761,0.68,178.51,178.49,22.61678349]
[1755621472445,13.59559401,178.51,178.46,22.61678349]
[1755621472651,0.68,178.5,178.46,22.61678349]
[1755621472851,13.59559401,178.51,178.45,22.61678349]
[1755621473047,0.68,178.5,178.47,22.61678349]
[1755621473266,13.59559401,178.49,178.48,22.61678349]
[1755621473499,14.27559401,178.49,178.44,22.61678349]
[1755621473655,0.68,178.48,178.42,0.06]
[1755621473862,0.68,178.48,178.43,22.61678349]
[1755621474181,14.15713938,178.52,178.45,22.61678349]
[1755621474182,13.59559401,178.47,178.45,22.61678349]
[1755621474354,13.59559401,178.47,178.44,22.61678349]
[1755621474560,44.2,178.54,178.42,0.06]
[1755621474561,13.59559401,178.5,178.46,22.61678349]
[1755621474753,0.68,178.51,178.42,0.06]
[1755621474754,13.59559401,178.48,178.47,22.61678349]
[1755621474958,0.56154537,178.53,178.47,22.61678349]
[1755621474959,23.17832886,178.53,178.47,22.61678349]
[1755621475184,13.59559401,178.51,178.47,22.61678349]
[1755621475389,58.45559401,178.55,178.5,22.61678349]
[1755621475583,58.45559401,178.55,178.44,0.14216157]
[1755621475584,13.59559401,178.53,178.45,26.0]
[1755621475792,13.59559401,178.53,178.51,22.61678349]
[1755621475994,14.27559401,178.52,178.51,22.61678349]
[1755621476303,14.27559401,178.52,178.45,26.0]
[1755621476606,13.59559401,178.52,178.51,22.61678349]
[1755621476760,0.68,178.52,178.45,26.0]
[1755621477188,0.68,178.52,178.49,22.61678349]
[1755621477604,0.68,178.51,178.49,22.61678349]
[1755621477782,0.68,178.5,178.42,26.06]
[1755621477975,13.59559401,178.49,178.42,26.06]
[1755621478290,13.59559401,178.49,178.47,22.61678349]
[1755621478479,23.17832886,178.53,178.46,22.61678349]
[1755621478480,0.68,178.48,178.46,22.61678349]
[1755621478791,0.68,178.47,178.46,22.61678349]
[1755621478990,0.68,178.47,178.45,22.61678349]
[1755621479174,0.68,178.46,178.45,22.61678349]
[1755621479375,0.68,178.46,178.43,0.06]
[1755621479576,0.68,178.45,178.43,0.06]
[1755621479783,0.68,178.48,178.44,22.61678349]
[1755621479979,0.68,178.47,178.44,22.61678349]
[1755621480180,13.59559401,178.45,178.43,0.06]
[1755621480478,36.2123775,178.44,178.43,0.06]
[1755621480799,13.59559401,178.43,178.42,0.06]
[1755621480968,80.9723775,178.43,178.42,0.06]
[1755621481404,107.11453907,178.43,178.4,0.06]
[1755621481710,36.2123775,178.41,178.39,0.06]
[1755621482016,36.2123775,178.4,178.39,0.06]
[1755621482176,36.8923775,178.4,178.39,0.06]
[1755621482380,36.8923775,178.4,178.37,0.06]
[1755621482381,30.18313116,178.38,178.37,0.06]
[1755621482617,44.08,178.38,178.37,0.06]
[1755621483110,74.94313116,178.38,178.29,16.58753715]
[1755621483308,16.58753715,178.35,178.29,16.58753715]
[1755621483623,0.68,178.34,178.29,16.58753715]
[1755621483823,16.58753715,178.32,178.28,0.1]
[1755621484113,61.90908252,178.33,178.28,0.1]
[1755621484303,0.68,178.31,178.28,16.68753715]
[1755621484507,16.58753715,178.34,178.28,0.1]
[1755621484508,0.68,178.34,178.28,0.1]
[1755621484701,44.08,178.32,178.29,16.58753715]
[1755621485005,0.68,178.31,178.28,16.68753715]
[1755621485206,44.08,178.32,178.28,16.68753715]
[1755621485390,0.68,178.31,178.28,16.68753715]
[1755621485799,44.08,178.32,178.29,16.58753715]
[1755621485991,44.76,178.32,178.28,16.68753715]
[1755621486183,0.68,178.31,178.28,16.68753715]
[1755621486387,44.08,178.32,178.29,16.58753715]
[1755621486599,0.68,178.31,178.28,0.1]
[1755621486775,0.68,178.31,178.29,16.58753715]
[1755621486976,44.08,178.32,178.29,16.58753715]
[1755621487219,44.0,178.33,178.31,16.58753715]
[1755621487375,44.0,178.33,178.32,16.58753715]
[1755621487913,44.0,178.33,178.28,0.1]
[1755621487914,44.68,178.33,178.28,0.1]
[1755621488116,44.0,178.33,178.29,16.58753715]
[1755621488420,44.0,178.33,178.3,16.58753715]
[1755621488594,44.68,178.33,178.29,16.58753715]
[1755621488790,44.68,178.33,178.28,16.68753715]
[1755621489006,44.68,178.33,178.29,16.58753715]
[1755621489203,44.0,178.33,178.29,26.0]
[1755621489408,44.0,178.33,178.32,16.58753715]
[1755621489611,44.0,178.33,178.3,26.0]
[1755621489812,0.68,178.32,178.28,0.1]
[1755621490002,0.68,178.35,178.31,16.58753715]
[1755621490327,44.08,178.35,178.33,16.58753715]
[1755621490528,44.08,178.35,178.3,26.0]
[1755621490529,44.76,178.35,178.29,26.0]
[1755621490691,44.08,178.35,178.29,26.0]
[1755621490888,44.08,178.35,178.33,16.58753715]
[1755621491085,44.76,178.35,178.33,16.58753715]
[1755621491606,0.68,178.34,178.32,16.58753715]
[1755621491806,44.08,178.35,178.32,16.58753715]
[1755621492031,44.08,178.35,178.34,16.58753715]
[1755621493513,0.68,178.39,178.34,16.58753715]
[1755621493728,0.68,178.39,178.32,26.0]
[1755621493729,44.0,178.39,178.38,16.58753715]
[1755621494086,44.68,178.39,178.37,16.58753715]
[1755621494286,44.0,178.39,178.38,16.58753715]
[1755621494513,2.92350975,178.49,178.38,42.58753715]
[1755621494816,44.0,178.46,178.43,16.58753715]
[1755621495193,0.03,178.47,178.41,26.0]
[1755621495405,44.01,178.47,178.45,16.58753715]
[1755621495602,44.01,178.47,178.46,16.58753715]
[1755621496110,44.69,178.47,178.46,16.58753715]
[1755621496285,44.69,178.47,178.42,16.58753715]
[1755621496493,0.03,178.45,178.39,26.0]
[1755621496825,17.26753715,178.44,178.38,16.58753715]
[1755621497033,16.58753715,178.42,178.37,42.58753715]
[1755621497334,16.58753715,178.42,178.34,13.59559401]
[1755621497335,0.68,178.41,178.36,16.58753715]
[1755621497499,0.68,178.4,178.36,16.58753715]
[1755621497696,43.98,178.42,178.39,16.58753715]
[1755621497900,0.71,178.45,178.39,26.0]
[1755621498201,17.14908252,178.44,178.39,42.58753715]
[1755621498403,17.26753715,178.43,178.37,16.58753715]
[1755621498607,0.68,178.43,178.39,16.58753715]
[1755621498804,0.68,178.43,178.4,16.58753715]
[1755621499092,16.58753715,178.41,178.34,16.58753715]
[1755621499309,61.82908252,178.4,178.34,16.58753715]
[1755621499503,44.02,178.39,178.35,16.58753715]
[1755621499704,44.7,178.39,178.35,16.58753715]
[1755621499898,44.7,178.39,178.36,16.58753715]
[1755621500527,0.68,178.38,178.35,16.58753715]
[1755621501004,1.24154537,178.37,178.32,16.64753715]
[1755621501198,16.58753715,178.38,178.32,16.64753715]
[1755621501199,0.68,178.36,178.33,16.58753715]
[1755621501420,0.68,178.37,178.34,16.58753715]
[1755621501827,44.58154537,178.39,178.34,16.58753715]
[1755621502120,0.68,178.38,178.34,16.58753715]
[1755621502302,44.02,178.39,178.36,16.58753715]
[1755621502702,0.68,178.44,178.38,16.58753715]
[1755621502892,0.03,178.45,178.38,16.58753715]